fUSD/lending_fUSD_20241125
["ID","MTS","AMOUNT","RATE_DAILY","PERIOD"]
[343299614,1732549875019,-500.0,0.00044109,30]
[343299615,1732549875029,-1799.028043,0.00044109,14]
[343299616,1732549875038,-1799.028043,0.00044109,14]
[343299617,1732549875047,-151.0,0.00044109,14]
[343299618,1732549875056,-151.0,0.00044109,14]
[343299619,1732549875065,-500.0,0.00044109,30]
[343299620,1732549875074,-500.0,0.00044109,30]
[343299621,1732549875083,-500.0,0.00044109,30]
[343299622,1732549875092,-596.82314234,0.00044109,30]
[343299623,1732549875101,-557.63,0.00044109,30]
[343299624,1732549875110,-1030.53,0.00044109,30]
[343299625,1732549875119,-500.0,0.00044109,30]
[343299626,1732549875128,-500.0,0.00044109,30]
[343299627,1732549875137,-500.0,0.00044109,30]
[343299628,1732549875147,-500.0,0.00044109,30]
[343299629,1732549875156,-500.0,0.00044109,30]
[343299630,1732549875165,-500.0,0.00044109,30]
[343299631,1732549875175,-500.0,0.00044109,30]
[343299632,1732549875184,-500.0,0.00044109,30]
[343299633,1732549875194,-500.0,0.00044109,30]
[343299634,1732549875203,-302.50181286,0.00044109,30]
[343299635,1732549875213,-500.0,0.00044109,30]
[343299636,1732549875222,-500.0,0.00044109,30]
[343299637,1732549875235,-501.51900453,0.00044109,30]
[343299638,1732549875245,-514.569792,0.00044109,14]
[343299639,1732549875255,-500.0,0.00044109,30]
[343299640,1732549875266,-514.569792,0.00044109,14]
[343299641,1732549875276,-500.0,0.00044109,30]
[343299642,1732549875286,-463.99629269,0.00044109,30]
[343299643,1732549875296,-500.0,0.00044109,30]
[343299644,1732549875306,-500.0,0.00044109,30]
[343299645,1732549875315,-514.569792,0.00044109,14]
[343299646,1732549875325,-514.569792,0.00044109,14]
[343299647,1732549875334,-500.0,0.00044109,30]
[343299648,1732549875344,-151.0,0.00044109,14]
[343299649,1732549875354,-522.55209433,0.00044109,30]
[343299650,1732549875364,-151.0,0.00044109,14]
[343299651,1732549875374,-500.0,0.00044109,30]
[343299652,1732549875384,-500.0,0.00044109,30]
[343299653,1732549875394,-500.0,0.00044109,30]
[343299654,1732549875404,-500.0,0.00044109,30]
[343299655,1732549875415,-590.84,0.00044109,30]
[343299656,1732549875424,-470.12019254,0.00044109,30]
[343299657,1732549875434,-1495.52,0.00044109,30]
[343299658,1732549875445,-502.51693999,0.00044109,30]
[343299659,1732549875455,-571.041537,0.00044109,14]
[343299660,1732549875465,-500.0,0.00044109,30]
[343299661,1732549875474,-571.041537,0.00044109,14]
[343299662,1732549875488,-500.0,0.00044109,30]
[343299663,1732549875498,-571.041537,0.00044109,14]
[343299664,1732549875508,-571.041537,0.00044109,14]
[343299665,1732549875518,-500.0,0.00044109,30]
[343299666,1732549875527,-500.0,0.00044109,30]
[343299667,1732549875537,-514.61902316,0.00044109,30]
[343299668,1732549875547,-500.0,0.00044109,30]
[343299669,1732549875557,-623.44,0.00044109,30]
[343299670,1732549875566,-500.0,0.00044109,30]
[343299671,1732549875576,-500.0,0.00044109,30]
[343299672,1732549875585,-186.75394511,0.00044109,30]
[343299673,1732549875595,-500.0,0.00044109,30]
[343299674,1732549875604,-500.0,0.00044109,30]
[343299675,1732549875614,-858.034514,0.00044109,14]
[343299676,1732549875623,-500.0,0.00044109,30]
[343299677,1732549875633,-657.13,0.00044109,30]
[343299678,1732549875643,-731.69,0.00044109,30]
[343299679,1732549875653,-500.0,0.00044109,30]
[343299680,1732549875663,-500.0,0.00044109,30]
[343299681,1732549875673,-858.034514,0.00044109,14]
[343299682,1732549875683,-858.034514,0.00044109,14]
[343299683,1732549875693,-500.0,0.00044109,30]
[343299684,1732549875702,-500.0,0.00044109,30]
[343299685,1732549875712,-500.0,0.00044109,30]
[343299686,1732549875721,-500.0,0.00044109,30]
[343299687,1732549875735,-500.0,0.00044109,30]
[343299688,1732549875744,-500.0,0.00044109,30]
[343299689,1732549875754,-500.0,0.00044109,30]
[343299690,1732549875763,-687.2,0.00044109,30]
[343299691,1732549875773,-500.0,0.00044109,30]
[343299692,1732549875782,-500.0,0.00044109,30]
[343299693,1732549875792,-932.32,0.00044109,30]
[343299694,1732549875801,-500.0,0.00044109,30]
[343299695,1732549875811,-500.0,0.00044109,30]
[343299696,1732549875821,-500.0,0.00044109,30]
[343299697,1732549875830,-500.0,0.00044109,30]
[343299698,1732549875839,-500.0,0.00044109,30]
[343299699,1732549875849,-507.76119383,0.00044109,30]
[343299700,1732549875858,-500.0,0.00044109,30]
[343299701,1732549875868,-500.0,0.00044109,30]
[343299702,1732549875877,-500.0,0.00044109,30]
[343299703,1732549875886,-500.0,0.00044109,30]
[343299704,1732549875896,-500.0,0.00044109,30]
[343299705,1732549875907,-500.0,0.00044109,30]
[343299706,1732549875916,-500.0,0.00044109,30]
[343299707,1732549875927,-500.0,0.00044109,30]
[343299708,1732549875937,-500.0,0.00044109,30]
[343299709,1732549875950,-591.64,0.00044109,30]
[343299710,1732549875960,-500.0,0.00044109,30]
[343299711,1732549875970,-908.395234,0.00044109,14]
[343299712,1732549875985,-908.395234,0.00044109,14]
[343299713,1732549875997,-500.0,0.00044109,30]
[343299714,1732549876007,-500.0,0.00044109,30]
[343299715,1732549876018,-500.0,0.00044109,30]
[343299716,1732549876027,-908.395234,0.00044109,14]
[343299717,1732549876037,-908.395234,0.00044109,14]
[343299718,1732549876047,-500.0,0.00044109,30]
[343299719,1732549876056,-907.4,0.00044109,30]
[343299720,1732549876066,-500.0,0.00044109,30]
[343299721,1732549876075,-500.0,0.00044109,30]
[343299722,1732549876085,-500.0,0.00044109,30]
[343299723,1732549876095,-500.0,0.00044109,30]
[343299724,1732549876105,-552.46,0.00044109,30]
[343299725,1732549876115,-500.0,0.00044109,30]
[343299726,1732549876124,-500.0,0.00044109,30]
[343299727,1732549876134,-644.31,0.00044109,30]
[343299728,1732549876143,-500.0,0.00044109,30]
[343299729,1732549876153,-500.0,0.00044109,30]
[343299730,1732549876163,-500.0,0.00044109,30]
[343299731,1732549876172,-500.0,0.00044109,30]
[343299732,1732549876181,-500.0,0.00044109,30]
[343299733,1732549876190,-500.0,0.00044109,30]
[343299734,1732549876200,-500.0,0.00044109,30]
[343299735,1732549876209,-500.0,0.00044109,30]
[343299736,1732549876219,-405.01258641,0.00044109,30]
[343299737,1732549876234,-500.0,0.00044109,30]
[343299738,1732549876244,-500.0,0.00044109,30]
[343299739,1732549876253,-500.0,0.00044109,30]
[343299740,1732549876263,-500.0,0.00044109,30]
[343299741,1732549876273,-500.0,0.00044109,30]
[343299742,1732549876283,-500.0,0.00044109,30]
[343299743,1732549876293,-500.0,0.00044109,30]
[343299744,1732549876302,-500.0,0.00044109,30]
[343299745,1732549876312,-500.0,0.00044109,30]
[343299746,1732549876322,-500.0,0.00044109,30]
[343299747,1732549876331,-376.71443968,0.00044109,30]
[343299748,1732549876341,-500.0,0.00044109,30]
[343299749,1732549876350,-500.0,0.00044109,30]
[343299750,1732549876360,-500.0,0.00044109,30]
[343299751,1732549876370,-500.0,0.00044109,30]
[343299752,1732549876380,-500.0,0.00044109,30]
[343299753,1732549876390,-500.0,0.00044109,30]
[343299754,1732549876399,-500.0,0.00044109,30]
[343299755,1732549876409,-510.38046658,0.00044109,30]
[343299756,1732549876419,-500.0,0.00044109,30]
[343299757,1732549876428,-500.0,0.00044109,30]
[343299758,1732549876438,-500.0,0.00044109,30]
[343299759,1732549876447,-500.0,0.00044109,30]
[343299760,1732549876459,-500.0,0.00044109,30]
[343299761,1732549876469,-556.41780889,0.00044109,30]
[343299762,1732549876484,-500.0,0.00044109,30]
[343299763,1732549876494,-550.83350939,0.00044109,30]
[343299764,1732549876503,-500.0,0.00044109,30]
[343299765,1732549876514,-1101.56,0.00044109,30]
[343299766,1732549876524,-1124.8,0.00044109,30]
[343299767,1732549876535,-500.0,0.00044109,30]
[343299768,1732549876544,-500.0,0.00044109,30]
[343299769,1732549876554,-500.0,0.00044109,30]
[343299770,1732549876564,-500.0,0.00044109,30]
[343299771,1732549876574,-500.0,0.00044109,30]
[343299772,1732549876584,-500.0,0.00044109,30]
[343299773,1732549876593,-500.0,0.00044109,30]
[343299774,1732549876603,-505.60187983,0.00044109,30]
[343299775,1732549876612,-500.0,0.00044109,30]
[343299776,1732549876622,-500.0,0.00044109,30]
[343299777,1732549876632,-500.0,0.00044109,30]
[343299778,1732549876642,-635.67,0.00044109,30]
[343299779,1732549876651,-2855.27,0.00044109,30]
[343299780,1732549876661,-500.0,0.00044109,30]
[343299781,1732549876671,-500.0,0.00044109,30]
[343299782,1732549876681,-500.0,0.00044109,30]
[343299783,1732549876691,-500.0,0.00044109,30]
[343299784,1732549876700,-500.0,0.00044109,30]
[343299785,1732549876710,-500.0,0.00044109,30]
[343299786,1732549876720,-500.0,0.00044109,2]
[343299787,1732549876733,-500.0,0.00044109,30]
[343299788,1732549876743,-978.65,0.00044109,30]
[343299789,1732549876752,-3323.08,0.00044109,30]
[343299790,1732549876762,-500.0,0.00044109,30]
[343299791,1732549876772,-500.0,0.00044109,30]
[343299792,1732549876782,-500.0,0.00044109,30]
[343299793,1732549876791,-500.0,0.00044109,30]
[343299794,1732549876801,-504.98365051,0.00044109,30]
[343299795,1732549876810,-500.0,0.00044109,30]
[343299796,1732549876820,-500.0,0.00044109,30]
[343299797,1732549876829,-502.02280717,0.00044109,30]
[343299798,1732549876839,-500.0,0.00044109,30]
[343299799,1732549876848,-500.0,0.00044109,30]
[343299800,1732549876858,-434.1,0.00044109,30]
[343299801,1732549876867,-500.0,0.00044109,30]
[343299802,1732549876877,-536.58,0.00044109,30]
[343299803,1732549876886,-500.0,0.00044109,30]
[343299804,1732549876896,-500.0,0.00044109,30]
[343299805,1732549876906,-500.0,0.00044109,30]
[343299806,1732549876915,-500.0,0.00044109,30]
[343299807,1732549876925,-500.0,0.00044109,30]
[343299808,1732549876936,-500.0,0.00044109,30]
[343299809,1732549876949,-2778.48,0.00044109,30]
[343299810,1732549876959,-4802.72,0.00044109,30]
[343299811,1732549876969,-500.0,0.00044109,30]
[343299812,1732549876983,-151.0,0.00044109,14]
[343299813,1732549876992,-151.0,0.00044109,14]
[343299814,1732549877001,-500.0,0.00044109,30]
[343299815,1732549877011,-1151.35,0.00044109,30]
[343299816,1732549877021,-632.26,0.00044109,30]
[343299817,1732549877030,-500.0,0.00044109,30]
[343299818,1732549877039,-500.0,0.00044109,30]
[343299819,1732549877049,-783.79,0.00044109,30]
[343299820,1732549877059,-500.0,0.00044109,30]
[343299821,1732549877068,-500.0,0.00044109,30]
[343299822,1732549877077,-500.0,0.00044109,30]
[343299823,1732549877087,-500.0,0.00044109,30]
[343299824,1732549877096,-3206.08,0.00044109,30]
[343299825,1732549877106,-500.0,0.00044109,30]
[343299826,1732549877116,-500.0,0.00044109,30]
[343299827,1732549877125,-500.0,0.00044109,30]
[343299828,1732549877135,-500.0,0.00044109,30]
[343299829,1732549877145,-392.31417383,0.00044109,30]
[343299830,1732549877155,-500.0,0.00044109,30]
[343299831,1732549877165,-10000.0,0.00044109,14]
[343299832,1732549877342,-10000.0,0.00044109,14]
[343299833,1732549877351,-500.0,0.00044109,30]
[343299834,1732549877362,-500.0,0.00044109,30]
[343299835,1732549877382,-500.0,0.00044109,30]
[343299836,1732549877401,-1614.03,0.00044109,30]
[343299837,1732549877411,-500.0,0.00044109,30]
[343299838,1732549877421,-500.0,0.00044109,30]
[343299839,1732549877430,-10000.0,0.00044109,14]
[343299840,1732549877439,-500.0,0.00044109,30]
[343299841,1732549877450,-10000.0,0.00044109,14]
[343299842,1732549877459,-7976.48,0.00044109,30]
[343299843,1732549877469,-1303.95,0.00044109,30]
[343299844,1732549877482,-705.27,0.00044109,30]
[343299845,1732549877491,-509.508251,0.00044109,30]
[343299846,1732549877501,-4144.66,0.00044109,30]
[343299847,1732549877510,-500.0,0.00044109,30]
[343299848,1732549877520,-500.0,0.00044109,30]
[343299849,1732549877529,-500.0,0.00044109,30]
[343299850,1732549877539,-500.0,0.00044109,30]
[343299851,1732549877548,-500.0,0.00044109,30]
[343299852,1732549877557,-151.0,0.00044109,14]
[343299853,1732549877566,-623.75,0.00044109,30]
[343299854,1732549877576,-177.31156,0.00044109,14]
[343299855,1732549877585,-500.0,0.00044109,30]
[343299856,1732549877594,-4684.74,0.00044109,30]
[343299857,1732549877603,-500.0,0.00044109,30]
[343299858,1732549877612,-500.0,0.00044109,30]
[343299859,1732549877621,-500.0,0.00044109,30]
[343299860,1732549877631,-500.0,0.00044109,30]
[343299861,1732549877640,-615.81,0.00044109,30]
[343299862,1732549877649,-500.0,0.00044109,30]
[343299863,1732549877659,-500.0,0.00044109,30]
[343299864,1732549877668,-500.0,0.00044109,30]
[343299865,1732549877677,-630.63,0.00044109,30]
[343299866,1732549877686,-500.0,0.00044109,30]
[343299867,1732549877695,-500.0,0.00044109,30]
[343299868,1732549877705,-734.35,0.00044109,30]
[343299869,1732549877714,-529.57441088,0.00044109,30]
[343299870,1732549877724,-500.0,0.00044109,30]
[343299871,1732549877735,-4335.28,0.00044109,30]
[343299872,1732549877745,-500.0,0.00044109,30]
[343299873,1732549877754,-500.0,0.00044109,30]
[343299874,1732549877763,-504.91921766,0.00044109,30]
[343299875,1732549877772,-500.0,0.00044109,30]
[343299876,1732549877781,-500.0,0.00044109,30]
[343299877,1732549877791,-500.0,0.00044109,30]
[343299878,1732549877800,-500.0,0.00044109,30]
[343299879,1732549877809,-518.33589526,0.00044109,30]
[343299880,1732549877818,-500.0,0.00044109,30]
[343299881,1732549877828,-500.0,0.00044109,30]
[343299882,1732549877837,-711.23,0.00044109,30]
[343299883,1732549877846,-500.0,0.00044109,30]
[343299884,1732549877855,-538.57,0.00044109,30]
[343299885,1732549877864,-500.0,0.00044109,30]
[343299886,1732549877874,-676.71,0.00044109,30]
[343299887,1732549877882,-500.0,0.00044109,30]
[343299888,1732549877891,-500.0,0.00044109,30]
[343299889,1732549877900,-1453.1,0.00044109,30]
[343299890,1732549877911,-586.70958028,0.00044109,30]
[343299891,1732549877920,-151.0,0.00044109,14]
[343299892,1732549877930,-151.0,0.00044109,14]
[343299893,1732549877943,-500.0,0.00044109,30]
[343299894,1732549877952,-500.0,0.00044109,30]
[343299895,1732549877961,-500.0,0.00044109,30]
[343299896,1732549877970,-500.0,0.00044109,30]
[343299897,1732549877981,-731.32,0.00044109,30]
[343299898,1732549877990,-14587.66,0.00044109,30]
[343299899,1732549877999,-500.0,0.00044109,30]
[343299900,1732549878009,-500.0,0.00044109,30]
[343299901,1732549878018,-535.04595345,0.00044109,30]
[343299902,1732549878027,-559.53,0.00044109,30]
[343299903,1732549878037,-500.0,0.00044109,30]
[343299904,1732549878047,-500.0,0.00044109,30]
[343299905,1732549878056,-500.0,0.00044109,30]
[343299906,1732549878067,-403.5444489,0.00044109,30]
[343299907,1732549878082,-518.06,0.00044109,30]
[343299908,1732549878091,-500.0,0.00044109,30]
[343299909,1732549878101,-500.0,0.00044109,30]
[343299910,1732549878111,-500.0,0.00044109,30]
[343299911,1732549878120,-500.0,0.00044109,30]
[343299912,1732549878130,-500.0,0.00044109,30]
[343299913,1732549878139,-500.0,0.00044109,30]
[343299914,1732549878149,-500.0,0.00044109,30]
[343299915,1732549878158,-500.0,0.00044109,30]
[343299916,1732549878167,-519.16,0.00044109,30]
[343299917,1732549878177,-500.0,0.00044109,30]
[343299918,1732549878186,-500.0,0.00044109,30]
[343299919,1732549878196,-509.25105354,0.00044109,30]
[343299920,1732549878205,-500.0,0.00044109,30]
[343299921,1732549878215,-725.78,0.00044109,30]
[343299922,1732549878224,-500.0,0.00044109,30]
[343299923,1732549878239,-500.0,0.00044109,30]
[343299924,1732549878249,-500.0,0.00044109,30]
[343299925,1732549878259,-500.0,0.00044109,30]
[343299926,1732549878269,-408.78,0.00044109,30]
[343299927,1732549878279,-500.0,0.00044109,30]
[343299928,1732549878289,-500.0,0.00044109,30]
[343299929,1732549878299,-500.0,0.00044109,30]
[343299930,1732549878313,-151.0,0.00044109,14]
[343299931,1732549878323,-500.0,0.00044109,7]
[343299932,1732549878333,-151.0,0.00044109,14]
[343299933,1732549878343,-500.0,0.00044109,30]
[343299934,1732549878352,-509.01974435,0.00044109,30]
[343299935,1732549878362,-572.26,0.00044109,30]
[343299936,1732549878371,-579.51,0.00044109,30]
[343299937,1732549878381,-500.0,0.00044109,30]
[343299938,1732549878391,-500.0,0.00044109,30]
[343299939,1732549878400,-500.0,0.00044109,30]
[343299940,1732549878410,-500.0,0.00044109,30]
[343299941,1732549878419,-500.0,0.00044109,30]
[343299942,1732549878429,-500.0,0.00044109,30]
[343299943,1732549878438,-500.0,0.00044109,30]
[343299944,1732549878449,-500.0,0.00044109,30]
[343299945,1732549878458,-500.0,0.00044109,30]
[343299946,1732549878468,-784.36,0.00044109,30]
[343299947,1732549878479,-1056.53,0.00044109,30]
[343299948,1732549878490,-500.0,0.00044109,30]
[343299949,1732549878501,-500.0,0.00044109,30]
[343299950,1732549878511,-500.0,0.00044109,30]
[343299951,1732549878521,-968.38,0.00044109,30]
[343299952,1732549878531,-500.0,0.00044109,30]
[343299953,1732549878540,-653.67,0.00044109,30]
[343299954,1732549878550,-500.0,0.00044109,30]
[343299955,1732549878559,-500.0,0.00044109,30]
[343299956,1732549878568,-500.0,0.00044109,30]
[343299957,1732549878577,-500.0,0.00044109,30]
[343299958,1732549878586,-677.74,0.00044109,30]
[343299959,1732549878596,-508.52747781,0.00044109,30]
[343299960,1732549878605,-167.93,0.00044109,30]
[343299961,1732549878615,-542.27,0.00044109,30]
[343299962,1732549878625,-500.0,0.00044109,30]
[343299963,1732549878635,-500.0,0.00044109,30]
[343299964,1732549878644,-500.0,0.00044109,30]
[343299965,1732549878654,-918.9,0.00044109,30]
[343299966,1732549878663,-151.0,0.00044109,14]
[343299967,1732549878673,-151.0,0.00044109,14]
[343299968,1732549878682,-500.0,0.00044109,7]
[343299969,1732549878691,-500.0,0.00044109,30]
[343299970,1732549878700,-151.0,0.00044109,7]
[343299971,1732549878710,-274.045292,0.00044109,7]
[343299972,1732549878719,-500.0,0.00044109,30]
[343299973,1732549878731,-1283.32,0.00044109,30]
[343299974,1732549878741,-500.0,0.00044109,30]
[343299975,1732549878750,-500.0,0.00044109,30]
[343299976,1732549878760,-201.732248,0.00044109,14]
[343299977,1732549878769,-686.32,0.00044109,30]
[343299978,1732549878778,-969.43,0.00044109,30]
[343299979,1732549878788,-500.0,0.00044109,30]
[343299980,1732549878798,-631.94,0.00044109,30]
[343299981,1732549878807,-500.0,0.00044109,30]
[343299982,1732549878816,-500.0,0.00044109,30]
[343299983,1732549878826,-500.0,0.00044109,30]
[343299984,1732549878837,-500.0,0.00044109,30]
[343299985,1732549878846,-500.0,0.00044109,30]
[343299986,1732549878856,-500.0,0.00044109,30]
[343299987,1732549878866,-500.0,0.00044109,7]
[343299988,1732549878876,-579.15,0.00044109,30]
[343299989,1732549878885,-500.0,0.00044109,30]
[343299990,1732549878895,-500.0,0.00044109,30]
[343299991,1732549878904,-2904.23,0.00044109,30]
[343299992,1732549878915,-1087.87,0.00044109,30]
[343299993,1732549878924,-461.6113897,0.00044109,30]
[343299994,1732549878935,-500.0,0.00044109,30]
[343299995,1732549878949,-1313.67,0.00044109,21]
[343299996,1732549878959,-500.0,0.00044109,30]
[343299997,1732549878970,-500.0,0.00044109,30]
[343299998,1732549878981,-500.0,0.00044109,30]
[343299999,1732549878992,-500.0,0.00044109,30]
[343300000,1732549879002,-500.0,0.00044109,30]
[343300001,1732549879012,-1024.15,0.00044109,30]
[343300002,1732549879023,-2546.65,0.00044109,30]
[343300003,1732549879032,-500.0,0.00044109,30]
[343300004,1732549879042,-500.0,0.00044109,30]
[343300005,1732549879052,-670.83,0.00044109,30]
[343300006,1732549879061,-376.96,0.00044109,30]
[343300007,1732549879072,-640.0,0.00044109,30]
[343300008,1732549879081,-500.0,0.00044109,30]
[343300009,1732549879091,-500.0,0.00044109,30]
[343300010,1732549879100,-9828.12,0.00044109,30]
[343300011,1732549879110,-500.0,0.00044109,30]
[343300012,1732549879119,-493.80284047,0.00044109,30]
[343300013,1732549879129,-500.0,0.00044109,30]
[343300014,1732549879138,-500.0,0.00044109,30]
[343300015,1732549879148,-500.0,0.00044109,30]
[343300016,1732549879159,-500.0,0.00044109,30]
[343300017,1732549879170,-500.0,0.00044109,30]
[343300018,1732549879181,-500.0,0.00044109,30]
[343300019,1732549879193,-500.0,0.00044109,30]
[343300020,1732549879205,-527.72027191,0.00044109,30]
[343300021,1732549879215,-4620.65,0.00044109,30]
[343300022,1732549879226,-500.0,0.00044109,30]
[343300023,1732549879240,-500.0,0.00044109,30]
[343300024,1732549879252,-1160.37,0.00044109,30]
[343300025,1732549879263,-500.0,0.00044109,30]
[343300026,1732549879273,-500.0,0.00044109,30]
[343300027,1732549879285,-500.0,0.00044109,30]
[343300028,1732549879296,-589.83296567,0.00044109,30]
[343300029,1732549879307,-500.0,0.00044109,30]
[343300030,1732549879319,-500.0,0.00044109,30]
[343300031,1732549879329,-779.77,0.00044109,30]
[343300032,1732549879340,-500.0,0.00044109,30]
[343300033,1732549879351,-604.02,0.00044109,30]
[343300034,1732549879362,-515.94677108,0.00044109,30]
[343300035,1732549879373,-2763.33,0.00044109,30]
[343300036,1732549879383,-500.0,0.00044109,30]
[343300037,1732549879393,-500.0,0.00044109,30]
[343300038,1732549879403,-500.0,0.00044109,30]
[343300039,1732549879413,-740.79,0.00044109,30]
[343300040,1732549879422,-310.36942523,0.00044109,30]
[343300041,1732549879432,-500.0,0.00044109,30]
[343300042,1732549879442,-500.0,0.00044109,30]
[343300043,1732549879452,-500.0,0.00044109,23]
[343300044,1732549879463,-500.0,0.00044109,30]
[343300045,1732549879473,-500.0,0.00044109,30]
[343300046,1732549879487,-500.0,0.00044109,30]
[343300047,1732549879500,-500.0,0.00044109,30]
[343300048,1732549879510,-500.0,0.00044109,30]
[343300049,1732549879520,-500.0,0.00044109,30]
[343300050,1732549879530,-675.85,0.00044109,30]
[343300051,1732549879539,-200.0,0.00044109,7]
[343300052,1732549879549,-665.85,0.00044109,30]
[343300053,1732549879559,-500.0,0.00044109,30]
[343300054,1732549879569,-151.0,0.00044109,14]
[343300055,1732549879579,-823.57,0.00044109,30]
[343300056,1732549879588,-1517.0,0.00044109,30]
[343300057,1732549879598,-500.0,0.00044109,30]
[343300058,1732549879608,-500.0,0.00044109,30]
[343300059,1732549879617,-2468.83,0.00044109,30]
[343300060,1732549879627,-500.0,0.00044109,30]
[343300061,1732549879637,-500.0,0.00044109,30]
[343300062,1732549879647,-500.0,0.00044109,30]
[343300063,1732549879657,-541.09624249,0.00044109,30]
[343300064,1732549879666,-500.0,0.00044109,30]
[343300065,1732549879676,-504.2315611,0.00044109,30]
[343300066,1732549879685,-500.0,0.00044109,30]
[343300067,1732549879695,-1853.77,0.00044109,30]
[343300068,1732549879704,-500.0,0.00044109,30]
[343300069,1732549879715,-500.0,0.00044109,30]
[343300070,1732549879724,-500.0,0.00044109,30]
[343300071,1732549879737,-500.0,0.00044109,30]
[343300072,1732549879747,-839.75,0.00044109,30]
[343300073,1732549879761,-500.0,0.00044109,30]
[343300074,1732549879772,-1674.53,0.00044109,30]
[343300075,1732549879781,-151.0,0.00044109,14]
[343300076,1732549879791,-500.0,0.00044109,30]
[343300077,1732549879801,-500.0,0.00044109,30]
[343300078,1732549879811,-500.0,0.00044109,30]
[343300079,1732549879820,-518.08,0.00044109,30]
[343300080,1732549879829,-792.07,0.00044109,30]
[343300081,1732549879839,-164.18,0.00044109,30]
[343300082,1732549879848,-500.0,0.00044109,30]
[343300083,1732549879858,-500.0,0.00044109,30]
[343300084,1732549879868,-500.0,0.00044109,30]
[343300085,1732549879878,-500.0,0.00044109,30]
[343300086,1732549879887,-500.0,0.00044109,30]
[343300087,1732549879896,-295.46,0.00044109,30]
[343300088,1732549879906,-500.0,0.00044109,30]
[343300089,1732549879915,-500.0,0.00044109,30]
[343300090,1732549879925,-191.36,0.00044109,30]
[343300091,1732549879942,-883.95,0.00044109,30]
[343300092,1732549879953,-3457.99,0.00044109,30]
[343300093,1732549879963,-3757.66,0.00044109,30]
[343300094,1732549879974,-2700.69,0.00044109,30]
[343300095,1732549879987,-500.0,0.00044109,30]
[343300096,1732549879996,-789.32,0.00044109,30]
[343300097,1732549880005,-605.74,0.00044109,30]
[343300098,1732549880015,-972.97,0.00044109,30]
[343300099,1732549880026,-500.0,0.00044109,30]
[343300100,1732549880036,-500.0,0.00044109,30]
[343300101,1732549880045,-500.0,0.00044109,30]
[343300102,1732549880056,-500.0,0.00044109,30]
[343300103,1732549880066,-500.0,0.00044109,30]
[343300104,1732549880077,-500.0,0.00044109,30]
[343300105,1732549880087,-500.0,0.00044109,30]
[343300106,1732549880097,-500.0,0.00044109,30]
[343300107,1732549880108,-172.62,0.00044109,30]
[343300108,1732549880120,-500.0,0.00044109,30]
[343300109,1732549880136,-500.0,0.00044109,30]
[343300110,1732549880148,-500.0,0.00044109,30]
[343300111,1732549880160,-500.0,0.00044109,30]
[343300112,1732549880171,-500.0,0.00044109,30]
[343300113,1732549880182,-2506.73,0.00044109,30]